[Event "*** Titled Tuesday Blitz"]
[Site "Chess.com"]
[Date "2019.04.02"]
[Round "10"]
[White "Konavets"]
[Black "Micki-taryan"]
[Result "1-0"]
[WhiteElo "2847"]
[BlackElo "2954"]
[TimeControl "180+2"]
[EndTime "16:18:22 PDT"]
[Termination "Konavets won by checkmate"]

1. e4 {[%clk 0:03:01.9]} 1... e5 {[%clk 0:02:57.9]} 2. Nf3 {[%clk 0:03:01.5]}
2... Nc6 {[%clk 0:02:59.3]} 3. Bc4 {[%clk 0:02:58.4]} 3... Bc5 {[%clk 0:02:58]}
4. O-O {[%clk 0:02:59.2]} 4... Nf6 {[%clk 0:02:58.9]} 5. d3 {[%clk 0:03:00.5]}
5... O-O {[%clk 0:02:59.7]} 6. c3 {[%clk 0:03:01.6]} 6... d6 {[%clk 0:02:54.1]}
7. a4 {[%clk 0:03:00]} 7... a5 {[%clk 0:02:54.6]} 8. Bg5 {[%clk 0:03:00.7]} 8...
h6 {[%clk 0:02:55.1]} 9. Bh4 {[%clk 0:03:01.8]} 9... g5 {[%clk 0:02:42.2]} 10.
Bg3 {[%clk 0:03:01.9]} 10... Ba7 {[%clk 0:02:38.7]} 11. Nbd2 {[%clk 0:02:58.8]}
11... Be6 {[%clk 0:02:30.5]} 12. Kh1 {[%clk 0:02:54.1]} 12... Kg7 {[%clk
0:02:14.9]} 13. Bb5 {[%clk 0:02:40.1]} 13... Bd7 {[%clk 0:02:13.9]} 14. Nc4
{[%clk 0:02:37.8]} 14... Ne7 {[%clk 0:02:14.7]} 15. Bxd7 {[%clk 0:02:36.5]}
15... Qxd7 {[%clk 0:02:14]} 16. Qb3 {[%clk 0:02:10.6]} 16... Ng6 {[%clk
0:02:07.9]} 17. Nxa5 {[%clk 0:02:04.5]} 17... h5 {[%clk 0:02:06.7]} 18. h4
{[%clk 0:01:59.9]} 18... gxh4 {[%clk 0:01:44.3]} 19. Bxh4 {[%clk 0:01:27.7]}
19... Qg4 {[%clk 0:01:43.5]} 20. Bxf6+ {[%clk 0:01:25.9]} 20... Kxf6 {[%clk
0:01:45.4]} 21. Nh2 {[%clk 0:01:27.4]} 21... Qg5 {[%clk 0:01:36.9]} 22. Nc4
{[%clk 0:01:20.1]} 22... Nf4 {[%clk 0:01:34]} 23. g3 {[%clk 0:01:21.2]} 23...
Rg8 {[%clk 0:01:32.5]} 24. Qxb7 {[%clk 0:01:07.2]} 24... h4 {[%clk 0:01:03.5]}
25. Qxc7 {[%clk 0:01:07.5]} 25... Ne6 {[%clk 0:00:30.4]} 26. Qxd6 {[%clk
0:01:00.2]} 26... Rad8 {[%clk 0:00:30.8]} 27. Qa6 {[%clk 0:01:01.2]} 27... Rh8
{[%clk 0:00:21.5]} 28. Qxa7 {[%clk 0:00:58.6]} 28... Kg7 {[%clk 0:00:18.9]} 29.
Qe3 {[%clk 0:00:57.5]} 29... hxg3 {[%clk 0:00:06.6]} 30. Qxg5+ {[%clk
0:00:54.4]} 30... Nxg5 {[%clk 0:00:08.5]} 31. fxg3 {[%clk 0:00:55.9]} 31... Rxd3
{[%clk 0:00:10.4]} 32. Rae1 {[%clk 0:00:41.6]} 32... Rc8 {[%clk 0:00:04.6]} 33.
Nxe5 {[%clk 0:00:36.6]} 33... Rd2 {[%clk 0:00:06]} 34. Nef3 {[%clk 0:00:37.5]}
34... Nxf3 {[%clk 0:00:07.5]} 35. Nxf3 {[%clk 0:00:39.4]} 35... Rc2 {[%clk
0:00:09.4]} 36. Kg1 {[%clk 0:00:37.9]} 36... Rxb2 {[%clk 0:00:10.7]} 37. Rf2
{[%clk 0:00:39]} 37... Rb3 {[%clk 0:00:12.3]} 38. Nd4 {[%clk 0:00:40.1]} 38...
Rbxc3 {[%clk 0:00:13.2]} 39. e5 {[%clk 0:00:41.5]} 39... R8c4 {[%clk 0:00:13.3]}
40. Nf5+ {[%clk 0:00:39.8]} 40... Kg6 {[%clk 0:00:14.5]} 41. Kg2 {[%clk
0:00:40.6]} 41... Rxa4 {[%clk 0:00:15.3]} 42. e6 {[%clk 0:00:42]} 42... fxe6
{[%clk 0:00:16.2]} 43. Rxe6+ {[%clk 0:00:43.9]} 43... Kg5 {[%clk 0:00:18.1]} 44.
Nh4 {[%clk 0:00:40.5]} 44... Ra5 {[%clk 0:00:16]} 45. Rg6+ {[%clk 0:00:40.6]}
45... Kh5 {[%clk 0:00:16.2]} 46. Rg8 {[%clk 0:00:42.5]} 46... Rg5 {[%clk
0:00:11.6]} 47. Rh8+ {[%clk 0:00:42]} 47... Kg4 {[%clk 0:00:12.7]} 48. Rf4#
{[%clk 0:00:43.5]} 1-0

[Event "*** Titled Tuesday Blitz"]
[Site "Chess.com"]
[Date "2019.04.02"]
[Round "10"]
[White "StoreySniper"]
[Black "Schachmalanders"]
[Result "0-1"]
[WhiteElo "2436"]
[BlackElo "2289"]
[TimeControl "180+2"]
[EndTime "16:18:24 PDT"]
[Termination "Schachmalanders won by resignation"]

1. f4 {[%clk 0:03:01.9]} 1... d5 {[%clk 0:02:58.6]} 2. d3 {[%clk 0:03:01.9]}
2... e6 {[%clk 0:02:58.4]} 3. Nf3 {[%clk 0:03:01.2]} 3... f5 {[%clk 0:02:59.6]}
4. g3 {[%clk 0:03:01.9]} 4... Nf6 {[%clk 0:03:00.9]} 5. Bg2 {[%clk 0:03:02.7]}
5... c6 {[%clk 0:03:01.3]} 6. O-O {[%clk 0:03:03.6]} 6... Bd6 {[%clk 0:03:02.3]}
7. Nc3 {[%clk 0:03:03.3]} 7... O-O {[%clk 0:03:03.3]} 8. e4 {[%clk 0:03:03.9]}
8... fxe4 {[%clk 0:03:03.7]} 9. dxe4 {[%clk 0:03:05]} 9... Bc5+ {[%clk 0:03:01]}
10. Kh1 {[%clk 0:03:05.4]} 10... b6 {[%clk 0:02:51]} 11. e5 {[%clk 0:02:51.4]}
11... Ng4 {[%clk 0:02:51.1]} 12. Qe2 {[%clk 0:02:45.3]} 12... Ba6 {[%clk
0:02:48.7]} 13. Qe1 {[%clk 0:02:31.2]} 13... Bxf1 {[%clk 0:02:47.5]} 14. Bxf1
{[%clk 0:02:31.6]} 14... Nd7 {[%clk 0:02:38.8]} 15. Bh3 {[%clk 0:02:29]} 15...
h5 {[%clk 0:02:36.1]} 16. Bxg4 {[%clk 0:02:29.1]} 16... hxg4 {[%clk 0:02:38]}
17. Ng5 {[%clk 0:02:29.9]} 17... Qe8 {[%clk 0:02:30.1]} 18. Qe2 {[%clk
0:02:22.7]} 18... Qg6 {[%clk 0:02:08.4]} 19. Qxg4 {[%clk 0:02:21.2]} 19... Rae8
{[%clk 0:01:55.4]} 20. Qh3 {[%clk 0:01:52.5]} 20... Rf5 {[%clk 0:01:32.5]} 21.
Bd2 {[%clk 0:01:45.2]} 21... Be7 {[%clk 0:01:21.8]} 22. Nf3 {[%clk 0:01:36]}
22... Rh5 {[%clk 0:01:14.3]} 23. Qg2 {[%clk 0:01:31.8]} 23... Qxc2 {[%clk
0:01:14.4]} 24. Nd4 {[%clk 0:01:23]} 24... Qg6 {[%clk 0:01:12.3]} 25. Nxc6
{[%clk 0:01:20.8]} 25... Bc5 {[%clk 0:01:09.6]} 26. b4 {[%clk 0:01:18.2]} 26...
Bf8 {[%clk 0:01:08]} 27. Ne2 {[%clk 0:01:12.5]} 27... Rc8 {[%clk 0:01:00.2]} 28.
Ned4 {[%clk 0:01:12.8]} 28... Nb8 {[%clk 0:00:55.9]} 29. b5 {[%clk 0:01:12.3]}
29... a6 {[%clk 0:00:54.6]} 30. a4 {[%clk 0:01:11.2]} 30... Nxc6 {[%clk
0:00:48]} 31. Nxc6 {[%clk 0:01:11.5]} 31... Qc2 {[%clk 0:00:35]} 32. Be3 {[%clk
0:01:09.9]} 32... Rxc6 {[%clk 0:00:32.4]} 33. bxc6 {[%clk 0:01:09.4]} 33... Qxc6
{[%clk 0:00:34.3]} 34. g4 {[%clk 0:00:46.6]} 34... Rh7 {[%clk 0:00:27.7]} 35. f5
{[%clk 0:00:46.1]} 35... Rh4 {[%clk 0:00:22.9]} 36. Qf3 {[%clk 0:00:31.5]} 36...
Qc4 {[%clk 0:00:21.5]} 37. h3 {[%clk 0:00:29.8]} 37... Qc3 {[%clk 0:00:19.7]}
38. Rf1 {[%clk 0:00:18.8]} 38... Qxe5 {[%clk 0:00:19.6]} 39. fxe6 {[%clk
0:00:14.5]} 39... Bd6 {[%clk 0:00:20.8]} 40. Qf7+ {[%clk 0:00:14.1]} 40... Kh8
{[%clk 0:00:20.7]} 41. Bf4 {[%clk 0:00:13.2]} 41... Qe4+ {[%clk 0:00:19.4]} 42.
Kh2 {[%clk 0:00:13.9]} 42... Qe2+ {[%clk 0:00:18.9]} 43. Rf2 {[%clk 0:00:13.8]}
43... Qxf2+ {[%clk 0:00:19]} 0-1

[Event "*** Titled Tuesday Blitz"]
[Site "Chess.com"]
[Date "2019.04.02"]
[Round "10"]
[White "Amirreza_p"]
[Black "lachesisQ"]
[Result "0-1"]
[WhiteElo "2784"]
[BlackElo "3019"]
[TimeControl "180+2"]
[EndTime "16:18:33 PDT"]
[Termination "lachesisQ won by resignation"]

1. e4 {[%clk 0:03:01]} 1... c5 {[%clk 0:02:57.4]} 2. c3 {[%clk 0:03:01.3]} 2...
Nf6 {[%clk 0:02:57.9]} 3. e5 {[%clk 0:03:02.3]} 3... Nd5 {[%clk 0:02:59.5]} 4.
d4 {[%clk 0:03:03.9]} 4... Nc6 {[%clk 0:03:00.6]} 5. Nf3 {[%clk 0:03:04.3]} 5...
cxd4 {[%clk 0:02:58.7]} 6. cxd4 {[%clk 0:03:06.2]} 6... d6 {[%clk 0:03:00]} 7.
Bc4 {[%clk 0:03:07.6]} 7... e6 {[%clk 0:03:01.1]} 8. O-O {[%clk 0:03:07.1]} 8...
Be7 {[%clk 0:03:02.3]} 9. Bd2 {[%clk 0:03:05.4]} 9... O-O {[%clk 0:03:03.6]} 10.
Nc3 {[%clk 0:03:07]} 10... Nxc3 {[%clk 0:03:02.9]} 11. Bxc3 {[%clk 0:03:08.9]}
11... dxe5 {[%clk 0:03:02.5]} 12. dxe5 {[%clk 0:03:09.5]} 12... b6 {[%clk
0:03:00.8]} 13. Qe2 {[%clk 0:02:58]} 13... Bb7 {[%clk 0:03:01.7]} 14. Rfd1
{[%clk 0:02:59.2]} 14... Qc7 {[%clk 0:03:02.7]} 15. Bd3 {[%clk 0:03:00.5]} 15...
Rfd8 {[%clk 0:02:55.5]} 16. Be4 {[%clk 0:03:00.4]} 16... Nb4 {[%clk 0:02:49.5]}
17. Bxb7 {[%clk 0:02:59.7]} 17... Qxb7 {[%clk 0:02:50.5]} 18. Bxb4 {[%clk
0:03:00.8]} 18... Bxb4 {[%clk 0:02:52.4]} 19. Rxd8+ {[%clk 0:03:01.9]} 19...
Rxd8 {[%clk 0:02:53.3]} 20. Rd1 {[%clk 0:03:03.4]} 20... Rc8 {[%clk 0:02:54.5]}
21. Qd3 {[%clk 0:02:57.5]} 21... Be7 {[%clk 0:02:52]} 22. h4 {[%clk 0:02:52.1]}
22... h6 {[%clk 0:02:46.9]} 23. Qd7 {[%clk 0:02:52.5]} 23... Qc7 {[%clk
0:02:46.2]} 24. g3 {[%clk 0:02:45]} 24... Kf8 {[%clk 0:02:46.5]} 25. Kg2 {[%clk
0:02:44.1]} 25... a6 {[%clk 0:02:47.4]} 26. b3 {[%clk 0:02:44.1]} 26... b5
{[%clk 0:02:47.7]} 27. h5 {[%clk 0:02:37.8]} 27... b4 {[%clk 0:02:39.1]} 28. Rd4
{[%clk 0:02:23.3]} 28... a5 {[%clk 0:02:36]} 29. Qb5 {[%clk 0:02:00.5]} 29...
Qc5 {[%clk 0:02:12.5]} 30. Qd3 {[%clk 0:01:53.2]} 30... Qc2 {[%clk 0:02:08.3]}
31. Qa6 {[%clk 0:01:28.1]} 31... Kg8 {[%clk 0:02:01.5]} 32. Qxa5 {[%clk
0:01:27]} 32... Bc5 {[%clk 0:01:12.2]} 33. Rd2 {[%clk 0:01:26.8]} 33... Qe4
{[%clk 0:01:06.5]} 34. Rd8+ {[%clk 0:01:07.7]} 34... Rxd8 {[%clk 0:01:01.6]} 35.
Qxd8+ {[%clk 0:01:09.6]} 35... Bf8 {[%clk 0:01:01.4]} 36. Qd2 {[%clk 0:00:51.3]}
36... Qf5 {[%clk 0:01:01.2]} 37. Qf4 {[%clk 0:00:27.8]} 37... Qxh5 {[%clk
0:01:01.6]} 38. Qe4 {[%clk 0:00:29.4]} 38... Qf5 {[%clk 0:00:50.8]} 39. Qxf5
{[%clk 0:00:29.7]} 39... exf5 {[%clk 0:00:52.7]} 40. Nd4 {[%clk 0:00:30.8]}
40... g6 {[%clk 0:00:53.5]} 41. Kf3 {[%clk 0:00:30.6]} 41... Bc5 {[%clk
0:00:52.9]} 42. Ke3 {[%clk 0:00:24.9]} 42... g5 {[%clk 0:00:49]} 43. Kd3 {[%clk
0:00:25.1]} 43... Bxd4 {[%clk 0:00:48.4]} 44. Kxd4 {[%clk 0:00:27]} 44... h5
{[%clk 0:00:49.9]} 45. f4 {[%clk 0:00:15.8]} 45... Kg7 {[%clk 0:00:47.4]} 46.
fxg5 {[%clk 0:00:15.8]} 46... Kg6 {[%clk 0:00:48.6]} 47. a4 {[%clk 0:00:16.8]}
47... bxa3 {[%clk 0:00:47.7]} 48. Kc3 {[%clk 0:00:18.5]} 48... f4 {[%clk
0:00:46.8]} 49. gxf4 {[%clk 0:00:17.9]} 49... h4 {[%clk 0:00:48.1]} 50. b4
{[%clk 0:00:17.5]} 50... h3 {[%clk 0:00:48.8]} 51. b5 {[%clk 0:00:19.1]} 51...
a2 {[%clk 0:00:49.9]} 0-1

[Event "*** Titled Tuesday Blitz"]
[Site "Chess.com"]
[Date "2019.04.02"]
[Round "10"]
[White "novocane"]
[Black "almaguerjm"]
[Result "1-0"]
[WhiteElo "2203"]
[BlackElo "2311"]
[TimeControl "180+2"]
[EndTime "16:18:35 PDT"]
[Termination "novocane won by resignation"]

1. d4 {[%clk 0:03:01.7]} 1... Nf6 {[%clk 0:02:57.4]} 2. c4 {[%clk 0:03:02.7]}
2... c5 {[%clk 0:02:57.3]} 3. d5 {[%clk 0:03:04]} 3... e6 {[%clk 0:02:57.4]} 4.
Nc3 {[%clk 0:03:05.8]} 4... exd5 {[%clk 0:02:58.8]} 5. cxd5 {[%clk 0:03:07.7]}
5... d6 {[%clk 0:03:00.3]} 6. e4 {[%clk 0:03:09.2]} 6... g6 {[%clk 0:03:01.8]}
7. f3 {[%clk 0:03:10.6]} 7... Bg7 {[%clk 0:03:03]} 8. Bg5 {[%clk 0:03:12.2]}
8... O-O {[%clk 0:03:03.9]} 9. Qd2 {[%clk 0:03:13.2]} 9... Qa5 {[%clk
0:02:59.9]} 10. Nge2 {[%clk 0:02:58.4]} 10... Re8 {[%clk 0:02:56.5]} 11. Ng3
{[%clk 0:02:57.1]} 11... a6 {[%clk 0:02:47.8]} 12. Be2 {[%clk 0:02:46.6]} 12...
b5 {[%clk 0:02:42.7]} 13. O-O {[%clk 0:02:47.2]} 13... b4 {[%clk 0:02:34.1]} 14.
Nd1 {[%clk 0:02:47.6]} 14... Qc7 {[%clk 0:02:35.1]} 15. Rc1 {[%clk 0:02:38.4]}
15... a5 {[%clk 0:02:32]} 16. Ne3 {[%clk 0:02:39]} 16... Ba6 {[%clk 0:02:31.7]}
17. Bxa6 {[%clk 0:02:38.6]} 17... Nxa6 {[%clk 0:02:32.3]} 18. Nc4 {[%clk
0:02:39.2]} 18... Nd7 {[%clk 0:02:27.5]} 19. Bh6 {[%clk 0:02:33.1]} 19... Bd4+
{[%clk 0:02:21.9]} 20. Be3 {[%clk 0:02:29.3]} 20... Bxe3+ {[%clk 0:02:19.9]} 21.
Qxe3 {[%clk 0:02:26.3]} 21... Nb6 {[%clk 0:02:17.7]} 22. Qh6 {[%clk 0:02:06.5]}
22... Nxc4 {[%clk 0:02:06.1]} 23. Rxc4 {[%clk 0:02:08.4]} 23... Qe7 {[%clk
0:02:06.5]} 24. f4 {[%clk 0:01:59.8]} 24... Nc7 {[%clk 0:01:58.4]} 25. f5 {[%clk
0:01:49.7]} 25... Qf8 {[%clk 0:01:48]} 26. Qh4 {[%clk 0:01:40.8]} 26... Nb5
{[%clk 0:01:37.7]} 27. fxg6 {[%clk 0:01:03.4]} 27... hxg6 {[%clk 0:01:37.9]} 28.
Nf5 {[%clk 0:00:53.6]} 28... gxf5 {[%clk 0:00:52.9]} 29. exf5 {[%clk 0:00:21]}
29... Nd4 {[%clk 0:00:52]} 30. f6 {[%clk 0:00:18.9]} 30... Re5 {[%clk 0:00:32]}
31. Rf4 {[%clk 0:00:13.2]} 31... Ne2+ {[%clk 0:00:18.5]} 32. Kf2 {[%clk
0:00:14.5]} 32... Nxf4 {[%clk 0:00:19.8]} 33. Rxf4 {[%clk 0:00:16.4]} 33... Qc8
{[%clk 0:00:19.9]} 34. Rg4+ {[%clk 0:00:15.9]} 34... Qxg4 {[%clk 0:00:20.5]} 35.
Qxg4+ {[%clk 0:00:17.3]} 35... Kf8 {[%clk 0:00:22.1]} 36. Qg7+ {[%clk
0:00:18.3]} 36... Ke8 {[%clk 0:00:23.7]} 37. Qg8+ {[%clk 0:00:19.8]} 37... Kd7
{[%clk 0:00:25.3]} 38. Qxa8 {[%clk 0:00:20.3]} 38... Rf5+ {[%clk 0:00:26.8]} 39.
Ke3 {[%clk 0:00:20.6]} 39... Rxf6 {[%clk 0:00:28.7]} 40. Qxa5 {[%clk 0:00:20.9]}
40... Rf5 {[%clk 0:00:28.2]} 41. Qa7+ {[%clk 0:00:19]} 41... Ke8 {[%clk
0:00:29.4]} 42. Qb8+ {[%clk 0:00:19.6]} 42... Ke7 {[%clk 0:00:30.5]} 43. Qc7+
{[%clk 0:00:20.5]} 43... Kf6 {[%clk 0:00:31.6]} 44. Qxd6+ {[%clk 0:00:21.4]}
44... Kg5 {[%clk 0:00:33.2]} 45. Qxc5 {[%clk 0:00:21.3]} 45... f6 {[%clk
0:00:30.6]} 46. g3 {[%clk 0:00:19.7]} 46... Kg4 {[%clk 0:00:31.2]} 47. Qd4+
{[%clk 0:00:19.7]} 47... Kh3 {[%clk 0:00:32.7]} 48. Qh4+ {[%clk 0:00:19.1]}
48... Kg2 {[%clk 0:00:34]} 49. Qe4+ {[%clk 0:00:19.6]} 1-0

[Event "*** Titled Tuesday Blitz"]
[Site "Chess.com"]
[Date "2019.04.02"]
[Round "10"]
[White "stepanosinovsky"]
[Black "TheBigBadChessDad"]
[Result "1-0"]
[WhiteElo "2354"]
[BlackElo "2223"]
[TimeControl "180+2"]
[EndTime "16:18:44 PDT"]
[Termination "stepanosinovsky won by checkmate"]

1. e4 {[%clk 0:03:01.9]} 1... e5 {[%clk 0:03:00.8]} 2. Nf3 {[%clk 0:03:03.1]}
2... Nf6 {[%clk 0:03:01.9]} 3. Nc3 {[%clk 0:03:03.8]} 3... Nc6 {[%clk
0:03:02.3]} 4. Bb5 {[%clk 0:03:04.9]} 4... Bb4 {[%clk 0:03:03.2]} 5. O-O {[%clk
0:03:05.7]} 5... O-O {[%clk 0:03:04.4]} 6. d3 {[%clk 0:03:06.9]} 6... Bxc3
{[%clk 0:03:05.8]} 7. bxc3 {[%clk 0:03:07.5]} 7... d6 {[%clk 0:03:07.4]} 8. Bg5
{[%clk 0:03:06.7]} 8... h6 {[%clk 0:03:07.8]} 9. Bh4 {[%clk 0:03:06.2]} 9... Bg4
{[%clk 0:03:08.9]} 10. h3 {[%clk 0:03:05.6]} 10... Bxf3 {[%clk 0:03:10.1]} 11.
Qxf3 {[%clk 0:03:04.9]} 11... g5 {[%clk 0:03:11.3]} 12. Bg3 {[%clk 0:03:06.1]}
12... Nd7 {[%clk 0:03:12.1]} 13. h4 {[%clk 0:02:48.7]} 13... f6 {[%clk
0:03:10.1]} 14. Qg4 {[%clk 0:02:39.1]} 14... Qe7 {[%clk 0:02:55.2]} 15. f3
{[%clk 0:02:32.6]} 15... Kg7 {[%clk 0:02:50.4]} 16. Kf2 {[%clk 0:02:32.2]} 16...
a6 {[%clk 0:02:39.1]} 17. Bc4 {[%clk 0:02:29.3]} 17... Na5 {[%clk 0:02:34.9]}
18. Be6 {[%clk 0:02:29.5]} 18... Nc5 {[%clk 0:02:22.9]} 19. Bf5 {[%clk 0:02:29]}
19... Na4 {[%clk 0:02:12.7]} 20. Rh1 {[%clk 0:02:14.8]} 20... Rh8 {[%clk
0:02:12.4]} 21. hxg5 {[%clk 0:01:50.8]} 21... hxg5 {[%clk 0:02:11.7]} 22. c4
{[%clk 0:01:38.6]} 22... b5 {[%clk 0:02:06.7]} 23. cxb5 {[%clk 0:01:25.8]} 23...
axb5 {[%clk 0:02:08.6]} 24. f4 {[%clk 0:01:26]} 24... exf4 {[%clk 0:01:53.2]}
25. Bxf4 {[%clk 0:01:27.9]} 25... Nc6 {[%clk 0:01:37.2]} 26. Rh5 {[%clk
0:01:11]} 26... Ne5 {[%clk 0:01:27.4]} 27. Bxe5 {[%clk 0:01:06.9]} 27... Qxe5
{[%clk 0:01:27.7]} 28. Rah1 {[%clk 0:01:05.9]} 28... Rxh5 {[%clk 0:00:40.3]} 29.
Rxh5 {[%clk 0:00:56.9]} 29... Rh8 {[%clk 0:00:20.7]} 30. Rxh8 {[%clk 0:00:54.8]}
30... Kxh8 {[%clk 0:00:22.6]} 31. Qh5+ {[%clk 0:00:55]} 31... Kg7 {[%clk
0:00:24.2]} 32. Qh7+ {[%clk 0:00:52]} 32... Kf8 {[%clk 0:00:25.4]} 33. g3 {[%clk
0:00:50]} 33... Qc5+ {[%clk 0:00:23.1]} 34. Kf3 {[%clk 0:00:49.5]} 34... Qxc2
{[%clk 0:00:24]} 35. Qh8+ {[%clk 0:00:41.1]} 35... Kf7 {[%clk 0:00:22.2]} 36.
Qh7+ {[%clk 0:00:41.8]} 36... Kf8 {[%clk 0:00:23.5]} 37. Qh6+ {[%clk 0:00:42.2]}
37... Kf7 {[%clk 0:00:22]} 38. Qg6+ {[%clk 0:00:43.4]} 38... Kf8 {[%clk
0:00:15.9]} 39. Qxf6+ {[%clk 0:00:44.2]} 39... Ke8 {[%clk 0:00:17]} 40. Qh8+
{[%clk 0:00:40]} 40... Ke7 {[%clk 0:00:15.6]} 41. Qg7+ {[%clk 0:00:40.8]} 41...
Ke8 {[%clk 0:00:16.8]} 42. Qg8+ {[%clk 0:00:40.9]} 42... Ke7 {[%clk 0:00:17.8]}
43. Qxg5+ {[%clk 0:00:41.4]} 43... Kf7 {[%clk 0:00:17.8]} 44. Qg6+ {[%clk
0:00:41.6]} 44... Kf8 {[%clk 0:00:18.8]} 45. Qf6+ {[%clk 0:00:41.5]} 45... Ke8
{[%clk 0:00:19.1]} 46. Qh8+ {[%clk 0:00:32.7]} 46... Kf7 {[%clk 0:00:17.5]} 47.
Qh7+ {[%clk 0:00:33.3]} 47... Kf8 {[%clk 0:00:14.4]} 48. Qh6+ {[%clk 0:00:33]}
48... Kf7 {[%clk 0:00:14.9]} 49. Qe6+ {[%clk 0:00:31.7]} 49... Kg7 {[%clk
0:00:15.4]} 50. Qe7+ {[%clk 0:00:32.6]} 50... Kg8 {[%clk 0:00:12.6]} 51. Be6+
{[%clk 0:00:32.9]} 51... Kh8 {[%clk 0:00:13.6]} 52. Qf8+ {[%clk 0:00:33.5]}
52... Kh7 {[%clk 0:00:14.7]} 53. Bf5# {[%clk 0:00:34.8]} 1-0

[Event "*** Titled Tuesday Blitz"]
[Site "Chess.com"]
[Date "2019.04.02"]
[Round "10"]
[White "emperor87"]
[Black "DagurR"]
[Result "1/2-1/2"]
[WhiteElo "2698"]
[BlackElo "2556"]
[TimeControl "180+2"]
[EndTime "16:18:49 PDT"]
[Termination "Game drawn by agreement"]

1. Nf3 {[%clk 0:03:01.9]} 1... c5 {[%clk 0:02:59.9]} 2. g3 {[%clk 0:03:03.2]}
2... Nc6 {[%clk 0:02:39.4]} 3. Bg2 {[%clk 0:03:04.2]} 3... Nf6 {[%clk 0:02:37]}
4. O-O {[%clk 0:03:05.1]} 4... g6 {[%clk 0:02:38.4]} 5. c4 {[%clk 0:03:05.6]}
5... Bg7 {[%clk 0:02:39.6]} 6. Nc3 {[%clk 0:03:06.6]} 6... d6 {[%clk 0:02:37.8]}
7. e4 {[%clk 0:03:07.4]} 7... O-O {[%clk 0:02:37.4]} 8. d4 {[%clk 0:03:07.1]}
8... Ne8 {[%clk 0:02:14.5]} 9. d5 {[%clk 0:03:06.1]} 9... Ne5 {[%clk 0:02:12.7]}
10. Nxe5 {[%clk 0:03:05.7]} 10... Bxe5 {[%clk 0:02:12.3]} 11. Be3 {[%clk
0:03:06.6]} 11... f5 {[%clk 0:02:06.8]} 12. f4 {[%clk 0:03:04.9]} 12... Bg7
{[%clk 0:02:08]} 13. e5 {[%clk 0:03:02.6]} 13... dxe5 {[%clk 0:02:08.6]} 14.
fxe5 {[%clk 0:03:01.7]} 14... Bxe5 {[%clk 0:02:09.2]} 15. Bxc5 {[%clk
0:03:02.5]} 15... Qc7 {[%clk 0:01:57.8]} 16. Bd4 {[%clk 0:03:02.2]} 16... Bf6
{[%clk 0:01:36.7]} 17. Nb5 {[%clk 0:02:58.9]} 17... Qxc4 {[%clk 0:01:24.7]} 18.
a4 {[%clk 0:02:50.9]} 18... Bxd4+ {[%clk 0:01:10.8]} 19. Nxd4 {[%clk 0:02:50.3]}
19... Nf6 {[%clk 0:01:12.3]} 20. Rc1 {[%clk 0:02:49.1]} 20... Qb4 {[%clk
0:01:11.8]} 21. Rc7 {[%clk 0:02:44.6]} 21... Bd7 {[%clk 0:01:12]} 22. d6 {[%clk
0:02:39.2]} 22... Qxd6 {[%clk 0:01:03.8]} 23. Rxb7 {[%clk 0:02:27]} 23... Rab8
{[%clk 0:01:04.2]} 24. Qb3+ {[%clk 0:02:04.8]} 24... Kh8 {[%clk 0:00:48.8]} 25.
Rd1 {[%clk 0:02:05.6]} 25... Rxb7 {[%clk 0:00:39.9]} 26. Bxb7 {[%clk 0:02:05.1]}
26... Rb8 {[%clk 0:00:35]} 27. a5 {[%clk 0:02:05.7]} 27... e5 {[%clk 0:00:33.1]}
28. Nf3 {[%clk 0:01:33.7]} 28... Rxb7 {[%clk 0:00:33]} 29. Rxd6 {[%clk 0:01:28]}
29... Rxb3 {[%clk 0:00:33.9]} 30. Nxe5 {[%clk 0:01:29]} 30... Rxb2 {[%clk
0:00:16.5]} 31. Rxf6 {[%clk 0:01:22]} 31... Bb5 {[%clk 0:00:15.2]} 32. Rf8+
{[%clk 0:01:22.6]} 32... Kg7 {[%clk 0:00:16.6]} 33. Rf7+ {[%clk 0:01:23.7]}
33... Kh6 {[%clk 0:00:18.2]} 34. Rxa7 {[%clk 0:01:24]} 34... Ra2 {[%clk
0:00:14.9]} 35. h4 {[%clk 0:01:21.1]} 35... g5 {[%clk 0:00:13.2]} 36. Nf7+
{[%clk 0:01:20.4]} 36... Kh5 {[%clk 0:00:14.7]} 37. Nd6 {[%clk 0:01:14]} 37...
Bd3 {[%clk 0:00:14.9]} 38. Rxh7+ {[%clk 0:01:13.8]} 38... Kg4 {[%clk 0:00:16.4]}
39. Rg7 {[%clk 0:01:05.9]} 39... Kxg3 {[%clk 0:00:15.9]} 40. Rxg5+ {[%clk
0:01:06.5]} 40... Kxh4 {[%clk 0:00:17.6]} 41. Rg7 {[%clk 0:01:03.9]} 41... Rxa5
{[%clk 0:00:18.2]} 42. Kf2 {[%clk 0:01:04.8]} 42... Rd5 {[%clk 0:00:18.9]} 43.
Nf7 {[%clk 0:01:04.8]} 43... f4 {[%clk 0:00:18.1]} 44. Kf3 {[%clk 0:01:05]}
44... Bc2 {[%clk 0:00:13.7]} 45. Kxf4 {[%clk 0:01:05.7]} 45... Rd4+ {[%clk
0:00:14.1]} 46. Ke3 {[%clk 0:01:03.3]} 46... Re4+ {[%clk 0:00:15.5]} 47. Kf3
{[%clk 0:01:03.5]} 47... Re5 {[%clk 0:00:12]} 48. Nd6 {[%clk 0:01:03.7]} 48...
Rg5 {[%clk 0:00:10.6]} 49. Rc7 {[%clk 0:01:04.6]} 49... Rg3+ {[%clk 0:00:11.4]}
50. Kf2 {[%clk 0:01:04.5]} 50... Bg6 {[%clk 0:00:11.6]} 51. Rc5 {[%clk 0:01:04]}
51... Rg5 {[%clk 0:00:12.5]} 52. Rc4+ {[%clk 0:01:01.9]} 52... Rg4 {[%clk
0:00:13.5]} 53. Rc1 {[%clk 0:01:01]} 53... Kg5 {[%clk 0:00:14.6]} 54. Rc5+
{[%clk 0:01:00.5]} 54... Kf6 {[%clk 0:00:14.9]} 55. Nb5 {[%clk 0:01:01.2]} 55...
Rg5 {[%clk 0:00:15.6]} 56. Rxg5 {[%clk 0:01:01.1]} 56... Kxg5 {[%clk 0:00:16.7]}
1/2-1/2